[Event "Titled Tuesday Blitz April 11 Late 2023"]
[White "Steinberg, Nitzan"]
[Black "Filgueira, Hernan"]
[WhiteFideId "2801795"]
[BlackFideId "101770"]
[WhiteElo "2486"]
[BlackElo "2363"]
[Result "1-0"]
[Round "04"]
[TimeControl "180+2"]
[Date "2023.04.11"]
[WhiteClock "0:02:12"]
[BlackClock "0:00:50"]

1. d4 {[%clk 0:03:00]}  d5 {[%clk 0:02:58]} 2. Nf3 {[%clk 0:03:01]}  Nf6 {[%clk 0:02:58]} 3. c4 {[%clk 0:03:02]}  e6 {[%clk 0:02:57]} 4. Nc3 {[%clk 0:03:02]}  c6 {[%clk 0:02:55]} 5. e3 {[%clk 0:03:02]}  a6 {[%clk 0:02:54]} 6. b3 {[%clk 0:03:00]}  Bb4 {[%clk 0:02:53]} 7. Bd2 {[%clk 0:03:00]}  Bd6 {[%clk 0:02:53]} 8. Bd3 {[%clk 0:03:00]}  O-O {[%clk 0:02:53]} 9. Qc2 {[%clk 0:03:00]}  Nbd7 {[%clk 0:02:48]} 10. g4 {[%clk 0:03:01]}  g6 {[%clk 0:02:27]} 11. h4 {[%clk 0:02:56]}  e5 {[%clk 0:02:21]} 12. cxd5 {[%clk 0:02:55]}  exd4 {[%clk 0:02:18]} 13. Nxd4 {[%clk 0:02:54]}  Nxd5 {[%clk 0:02:07]} 14. Ne4 {[%clk 0:02:40]}  Nb4 {[%clk 0:02:01]} 15. Bxb4 {[%clk 0:02:40]}  Bxb4+ {[%clk 0:02:01]} 16. Ke2 {[%clk 0:02:37]}  Ne5 {[%clk 0:01:51]} 17. g5 {[%clk 0:02:38]}  Be7 {[%clk 0:01:47]} 18. Rad1 {[%clk 0:02:37]}  c5 {[%clk 0:01:41]} 19. Nxc5 {[%clk 0:02:34]}  Bxc5 {[%clk 0:01:33]} 20. Qxc5 {[%clk 0:02:34]}  Qe8 {[%clk 0:01:20]} 21. Be4 {[%clk 0:02:31]}  Bd7 {[%clk 0:01:17]} 22. h5 {[%clk 0:02:28]}  Rc8 {[%clk 0:01:14]} 23. Qd6 {[%clk 0:02:28]}  Bb5+ {[%clk 0:01:14]} 24. Ke1 {[%clk 0:02:25]}  Rd8 {[%clk 0:01:08]} 25. Qf6 {[%clk 0:02:20]}  Nc6 {[%clk 0:00:54]} 26. Bxc6 {[%clk 0:02:14]}  Rxd4 {[%clk 0:00:50]} 27. Bxe8 {[%clk 0:02:11]}  Rxd1+ {[%clk 0:00:49]} 28. Kxd1 {[%clk 0:02:12]}  Rxe8 {[%clk 0:00:50]} 29. h6 {[%clk 0:02:12]} 1-0


[Site "https://www.chess.com"]

[Event "Titled Tuesday Blitz April 11 Late 2023"]
[White "Licznerski, Lukasz"]
[Black "Haydon, David L"]
[WhiteFideId "1179250"]
[BlackFideId "415405"]
[WhiteElo "2450"]
[BlackElo "2326"]
[Result "1-0"]
[Round "04"]
[TimeControl "180+2"]
[Date "2023.04.11"]
[WhiteClock "0:00:04"]
[BlackClock "0:00:26"]

1. e4 {[%clk 0:03:00]}  Nf6 {[%clk 0:02:58]} 2. e5 {[%clk 0:03:01]}  Nd5 {[%clk 0:02:56]} 3. d4 {[%clk 0:03:02]}  d6 {[%clk 0:02:55]} 4. c4 {[%clk 0:03:02]}  Nb6 {[%clk 0:02:54]} 5. exd6 {[%clk 0:03:03]}  cxd6 {[%clk 0:02:54]} 6. Nc3 {[%clk 0:03:04]}  g6 {[%clk 0:02:54]} 7. Be3 {[%clk 0:03:05]}  Bg7 {[%clk 0:02:54]} 8. Rc1 {[%clk 0:03:05]}  O-O {[%clk 0:02:53]} 9. b3 {[%clk 0:03:06]}  Nc6 {[%clk 0:02:53]} 10. d5 {[%clk 0:03:06]}  Ne5 {[%clk 0:02:50]} 11. Be2 {[%clk 0:03:06]}  f5 {[%clk 0:02:48]} 12. f4 {[%clk 0:03:06]}  Ng4 {[%clk 0:02:48]} 13. Bxg4 {[%clk 0:03:06]}  fxg4 {[%clk 0:02:42]} 14. Nge2 {[%clk 0:03:07]}  Nd7 {[%clk 0:02:40]} 15. O-O {[%clk 0:03:03]}  Nf6 {[%clk 0:02:37]} 16. Bd4 {[%clk 0:02:59]}  Bf5 {[%clk 0:02:34]} 17. Ng3 {[%clk 0:02:58]}  Qd7 {[%clk 0:02:33]} 18. Qd2 {[%clk 0:02:55]}  Rf7 {[%clk 0:02:31]} 19. Rce1 {[%clk 0:02:55]}  a6 {[%clk 0:02:30]} 20. a4 {[%clk 0:02:54]}  h5 {[%clk 0:02:29]} 21. Nxf5 {[%clk 0:02:53]}  Qxf5 {[%clk 0:02:22]} 22. Re6 {[%clk 0:02:53]}  h4 {[%clk 0:02:21]} 23. Rfe1 {[%clk 0:02:43]}  Nh5 {[%clk 0:02:13]} 24. Bxg7 {[%clk 0:02:38]}  Kxg7 {[%clk 0:02:05]} 25. Qd4+ {[%clk 0:02:23]}  Kg8 {[%clk 0:02:03]} 26. Rxe7 {[%clk 0:02:18]}  Nxf4 {[%clk 0:02:01]} 27. Rxf7 {[%clk 0:02:06]}  Qxf7 {[%clk 0:01:59]} 28. Rf1 {[%clk 0:01:24]}  Rf8 {[%clk 0:01:55]} 29. Kh1 {[%clk 0:01:25]}  h3 {[%clk 0:01:32]} 30. gxh3 {[%clk 0:00:57]}  gxh3 {[%clk 0:01:22]} 31. Ne4 {[%clk 0:00:42]}  Qe7 {[%clk 0:01:18]} 32. Ng3 {[%clk 0:00:38]}  Ne2 {[%clk 0:01:10]} 33. Rxf8+ {[%clk 0:00:30]}  Qxf8 {[%clk 0:01:09]} 34. Qd3 {[%clk 0:00:26]}  Nxg3+ {[%clk 0:01:00]} 35. hxg3 {[%clk 0:00:23]}  Kh7 {[%clk 0:00:34]} 36. g4 {[%clk 0:00:16]}  Qf6 {[%clk 0:00:27]} 37. Qxh3+ {[%clk 0:00:15]}  Kg7 {[%clk 0:00:27]} 38. Qg3 {[%clk 0:00:10]}  Qa1+ {[%clk 0:00:27]} 39. Kg2 {[%clk 0:00:10]}  Qb2+ {[%clk 0:00:27]} 40. Kh3 {[%clk 0:00:09]}  Qf6 {[%clk 0:00:28]} 41. g5 {[%clk 0:00:09]}  Qf5+ {[%clk 0:00:27]} 42. Kh2 {[%clk 0:00:08]}  Qc2+ {[%clk 0:00:27]} 43. Kg1 {[%clk 0:00:08]}  Qd1+ {[%clk 0:00:27]} 44. Kg2 {[%clk 0:00:09]}  Qd2+ {[%clk 0:00:27]} 45. Kh3 {[%clk 0:00:08]}  Qd1 {[%clk 0:00:25]} 46. Qxd6 {[%clk 0:00:05]}  Qf3+ {[%clk 0:00:24]} 47. Qg3 {[%clk 0:00:04]}  Qh1+ {[%clk 0:00:24]} 48. Kg4 {[%clk 0:00:03]}  Qe4+ {[%clk 0:00:24]} 49. Qf4 {[%clk 0:00:02]}  Qg2+ {[%clk 0:00:25]} 50. Kh4 {[%clk 0:00:03]}  Qh1+ {[%clk 0:00:25]} 51. Kg3 {[%clk 0:00:04]}  Qg1+ {[%clk 0:00:26]} 52. Kf3 {[%clk 0:00:04]}  Qf1+ {[%clk 0:00:26]} 53. Ke4 {[%clk 0:00:05]}  Qe2+ {[%clk 0:00:26]} 54. Qe3 {[%clk 0:00:05]}  Qc2+ {[%clk 0:00:26]} 55. Ke5 {[%clk 0:00:05]}  Qb2+ {[%clk 0:00:26]} 56. Kd6 {[%clk 0:00:04]}  Qxb3 {[%clk 0:00:26]} 57. Qxb3 {[%clk 0:00:04]} 1-0


[Site "https://www.chess.com"]

[Event "Titled Tuesday Blitz April 11 Late 2023"]
[White "Djokic, Mihailo"]
[Black "Makarian, Rudik"]
[WhiteFideId "976440"]
[BlackFideId "44105681"]
[WhiteElo "2294"]
[BlackElo "2430"]
[Result "0-1"]
[Round "04"]
[TimeControl "180+2"]
[Date "2023.04.11"]
[WhiteClock "0:00:01"]
[BlackClock "0:00:11"]

1. e4 {[%clk 0:03:00]}  c5 {[%clk 0:03:00]} 2. Nf3 {[%clk 0:03:00]}  Nc6 {[%clk 0:03:00]} 3. d4 {[%clk 0:03:01]}  cxd4 {[%clk 0:03:01]} 4. Nxd4 {[%clk 0:03:01]}  e6 {[%clk 0:03:02]} 5. Nc3 {[%clk 0:03:02]}  a6 {[%clk 0:03:02]} 6. Be2 {[%clk 0:03:02]}  Qc7 {[%clk 0:03:01]} 7. O-O {[%clk 0:03:02]}  Nf6 {[%clk 0:03:02]} 8. Be3 {[%clk 0:03:03]}  d6 {[%clk 0:03:02]} 9. f4 {[%clk 0:03:02]}  Be7 {[%clk 0:03:02]} 10. Kh1 {[%clk 0:03:03]}  O-O {[%clk 0:03:03]} 11. Qe1 {[%clk 0:03:03]}  Nxd4 {[%clk 0:03:02]} 12. Bxd4 {[%clk 0:03:04]}  b5 {[%clk 0:03:03]} 13. a3 {[%clk 0:03:03]}  Bb7 {[%clk 0:03:03]} 14. Qg3 {[%clk 0:03:04]}  Rac8 {[%clk 0:03:04]} 15. Bd3 {[%clk 0:03:03]}  Nh5 {[%clk 0:03:00]} 16. Qg4 {[%clk 0:03:01]}  e5 {[%clk 0:03:00]} 17. fxe5 {[%clk 0:02:57]}  dxe5 {[%clk 0:03:00]} 18. Bxe5 {[%clk 0:02:57]}  Qxe5 {[%clk 0:02:59]} 19. Rf5 {[%clk 0:02:56]}  Qe6 {[%clk 0:02:39]} 20. Qxh5 {[%clk 0:02:54]}  g6 {[%clk 0:02:36]} 21. Qg4 {[%clk 0:02:52]}  Bf6 {[%clk 0:02:28]} 22. Qg3 {[%clk 0:01:51]}  Kh8 {[%clk 0:02:18]} 23. Rf3 {[%clk 0:01:24]}  Be5 {[%clk 0:02:01]} 24. Qf2 {[%clk 0:01:23]}  Kg7 {[%clk 0:01:58]} 25. Rf1 {[%clk 0:01:18]}  Rc7 {[%clk 0:01:58]} 26. Nd5 {[%clk 0:01:14]}  Bxd5 {[%clk 0:01:57]} 27. exd5 {[%clk 0:01:14]}  Qxd5 {[%clk 0:01:55]} 28. c3 {[%clk 0:01:14]}  Re7 {[%clk 0:01:51]} 29. h3 {[%clk 0:01:11]}  Kg8 {[%clk 0:01:30]} 30. Qh4 {[%clk 0:01:07]}  Bd6 {[%clk 0:01:27]} 31. Qf6 {[%clk 0:00:53]}  Re6 {[%clk 0:01:20]} 32. Qd4 {[%clk 0:00:44]}  Qxd4 {[%clk 0:01:20]} 33. cxd4 {[%clk 0:00:45]}  Kg7 {[%clk 0:01:21]} 34. a4 {[%clk 0:00:39]}  bxa4 {[%clk 0:01:19]} 35. Bxa6 {[%clk 0:00:39]}  f5 {[%clk 0:01:16]} 36. Bc4 {[%clk 0:00:36]}  Re7 {[%clk 0:01:13]} 37. Ra1 {[%clk 0:00:33]}  Rc8 {[%clk 0:01:06]} 38. Rc3 {[%clk 0:00:27]}  Re4 {[%clk 0:00:34]} 39. Bd3 {[%clk 0:00:17]}  Rxc3 {[%clk 0:00:33]} 40. bxc3 {[%clk 0:00:18]}  Re3 {[%clk 0:00:33]} 41. Bb5 {[%clk 0:00:16]}  a3 {[%clk 0:00:32]} 42. c4 {[%clk 0:00:16]}  Rb3 {[%clk 0:00:29]} 43. c5 {[%clk 0:00:15]}  a2 {[%clk 0:00:16]} 44. Bd3 {[%clk 0:00:02]}  Bf4 {[%clk 0:00:11]} 45. Bc2 {[%clk 0:00:03]}  Rb2 {[%clk 0:00:11]} 46. Bd3 {[%clk 0:00:01]}  Rd2 {[%clk 0:00:11]} 0-1


[Site "https://www.chess.com"]

[Event "Titled Tuesday Blitz April 11 Late 2023"]
[White "Klenburg, Michael"]
[Black "Kravtsiv, Martyn"]
[WhiteFideId "14102072"]
[BlackFideId "14113147"]
[WhiteElo "2396"]
[BlackElo "2695"]
[Result "0-1"]
[Round "04"]
[TimeControl "180+2"]
[Date "2023.04.11"]
[WhiteClock "0:00:24"]
[BlackClock "0:00:21"]

1. g3 {[%clk 0:02:59]}  d5 {[%clk 0:02:55]} 2. Bg2 {[%clk 0:02:59]}  c5 {[%clk 0:02:56]} 3. Nf3 {[%clk 0:02:58]}  Nf6 {[%clk 0:02:56]} 4. O-O {[%clk 0:02:57]}  Nc6 {[%clk 0:02:55]} 5. d3 {[%clk 0:02:57]}  e5 {[%clk 0:02:55]} 6. Nbd2 {[%clk 0:02:57]}  Bd6 {[%clk 0:02:56]} 7. e4 {[%clk 0:02:57]}  d4 {[%clk 0:02:55]} 8. Nc4 {[%clk 0:02:57]}  Bc7 {[%clk 0:02:56]} 9. a4 {[%clk 0:02:57]}  Be6 {[%clk 0:02:47]} 10. b3 {[%clk 0:02:52]}  h6 {[%clk 0:02:41]} 11. Ne1 {[%clk 0:02:42]}  g5 {[%clk 0:02:24]} 12. f4 {[%clk 0:02:35]}  gxf4 {[%clk 0:02:23]} 13. gxf4 {[%clk 0:02:35]}  Bg4 {[%clk 0:02:18]} 14. Qd2 {[%clk 0:02:21]}  exf4 {[%clk 0:02:10]} 15. Qf2 {[%clk 0:02:21]}  Nh5 {[%clk 0:02:07]} 16. Nf3 {[%clk 0:02:06]}  Rg8 {[%clk 0:02:06]} 17. Kh1 {[%clk 0:02:06]}  Qd7 {[%clk 0:01:53]} 18. Bd2 {[%clk 0:02:00]}  O-O-O {[%clk 0:01:52]} 19. a5 {[%clk 0:02:00]}  Bh3 {[%clk 0:01:42]} 20. Rg1 {[%clk 0:01:59]}  Bxg2+ {[%clk 0:01:42]} 21. Rxg2 {[%clk 0:01:58]}  Qh3 {[%clk 0:01:42]} 22. e5 {[%clk 0:01:43]}  Rg3 {[%clk 0:01:29]} 23. Ne1 {[%clk 0:01:23]}  Nxe5 {[%clk 0:01:17]} 24. Nxe5 {[%clk 0:01:22]}  Bxe5 {[%clk 0:01:18]} 25. Kg1 {[%clk 0:01:21]}  Rxg2+ {[%clk 0:01:03]} 26. Qxg2 {[%clk 0:01:20]}  Qxg2+ {[%clk 0:00:51]} 27. Kxg2 {[%clk 0:01:19]}  Rg8+ {[%clk 0:00:51]} 28. Kf2 {[%clk 0:01:18]}  Nf6 {[%clk 0:00:49]} 29. Nf3 {[%clk 0:01:08]}  Bc7 {[%clk 0:00:47]} 30. Rg1 {[%clk 0:00:59]}  Rxg1 {[%clk 0:00:44]} 31. Kxg1 {[%clk 0:00:59]}  Nd5 {[%clk 0:00:45]} 32. Kf2 {[%clk 0:00:56]}  Kd7 {[%clk 0:00:44]} 33. Ne1 {[%clk 0:00:55]}  Ke6 {[%clk 0:00:44]} 34. Kf3 {[%clk 0:00:55]}  Ne3 {[%clk 0:00:34]} 35. Ke4 {[%clk 0:00:50]}  Ng4 {[%clk 0:00:26]} 36. h4 {[%clk 0:00:35]}  Ne5 {[%clk 0:00:24]} 37. Kxf4 {[%clk 0:00:24]}  Nc4+ {[%clk 0:00:21]} 0-1


[Site "https://www.chess.com"]

[Event "Titled Tuesday Blitz April 11 Late 2023"]
[White "Kevlishvili, Robby"]
[Black "Belov, Alexei"]
[WhiteFideId "1040634"]
[BlackFideId "4128206"]
[WhiteElo "2572"]
[BlackElo "2421"]
[Result "1-0"]
[Round "04"]
[TimeControl "180+2"]
[Date "2023.04.11"]
[WhiteClock "0:01:48"]
[BlackClock "0:01:45"]

1. e4 {[%clk 0:03:00]}  e6 {[%clk 0:02:59]} 2. d4 {[%clk 0:02:59]}  d5 {[%clk 0:02:59]} 3. Nd2 {[%clk 0:02:55]}  Nf6 {[%clk 0:02:59]} 4. e5 {[%clk 0:02:55]}  Nfd7 {[%clk 0:02:59]} 5. f4 {[%clk 0:02:56]}  c5 {[%clk 0:02:59]} 6. Ngf3 {[%clk 0:02:56]}  Nc6 {[%clk 0:02:59]} 7. Nb3 {[%clk 0:02:56]}  cxd4 {[%clk 0:02:57]} 8. Nfxd4 {[%clk 0:02:56]}  Qb6 {[%clk 0:02:57]} 9. Be3 {[%clk 0:02:56]}  Nc5 {[%clk 0:02:46]} 10. Nxc6 {[%clk 0:02:30]}  Qxc6 {[%clk 0:02:31]} 11. Nxc5 {[%clk 0:02:27]}  Bxc5 {[%clk 0:02:30]} 12. Bxc5 {[%clk 0:02:28]}  Qxc5 {[%clk 0:02:31]} 13. Qd2 {[%clk 0:02:29]}  Bd7 {[%clk 0:02:30]} 14. O-O-O {[%clk 0:02:29]}  Rc8 {[%clk 0:02:25]} 15. Kb1 {[%clk 0:02:27]}  O-O {[%clk 0:02:25]} 16. Bd3 {[%clk 0:02:24]}  Bb5 {[%clk 0:02:22]} 17. h4 {[%clk 0:02:22]}  f6 {[%clk 0:02:19]} 18. exf6 {[%clk 0:02:20]}  Rxf6 {[%clk 0:02:19]} 19. g3 {[%clk 0:02:21]}  e5 {[%clk 0:01:58]} 20. Bxb5 {[%clk 0:02:10]}  Qxb5 {[%clk 0:01:58]} 21. fxe5 {[%clk 0:02:10]}  Rf3 {[%clk 0:01:53]} 22. Qxd5+ {[%clk 0:02:07]}  Qxd5 {[%clk 0:01:53]} 23. Rxd5 {[%clk 0:02:08]}  Rxg3 {[%clk 0:01:53]} 24. Rd7 {[%clk 0:02:08]}  Rg2 {[%clk 0:01:52]} 25. Rxb7 {[%clk 0:02:05]}  Rcxc2 {[%clk 0:01:46]} 26. e6 {[%clk 0:02:00]}  Rce2 {[%clk 0:01:45]} 27. Rb8# {[%clk 0:01:48]} 1-0


[Site "https://www.chess.com"]

[Event "Titled Tuesday Blitz April 11 Late 2023"]
[White "Samsonkin, Artiom"]
[Black "Francisco Guecamburu, Candela Be"]
[WhiteFideId "13503111"]
[BlackFideId "160911"]
[WhiteElo "2524"]
[BlackElo "2326"]
[Result "0-1"]
[Round "04"]
[TimeControl "180+2"]
[Date "2023.04.11"]
[WhiteClock "0:00:02"]
[BlackClock "0:01:22"]

1. Nf3 {[%clk 0:03:00]}  Nf6 {[%clk 0:02:59]} 2. e3 {[%clk 0:03:00]}  c5 {[%clk 0:02:59]} 3. b3 {[%clk 0:03:00]}  Nc6 {[%clk 0:03:00]} 4. Bb2 {[%clk 0:03:00]}  g6 {[%clk 0:03:00]} 5. g3 {[%clk 0:03:00]}  Bg7 {[%clk 0:03:00]} 6. Bg2 {[%clk 0:03:01]}  O-O {[%clk 0:03:01]} 7. O-O {[%clk 0:03:02]}  d6 {[%clk 0:02:58]} 8. d3 {[%clk 0:02:58]}  e5 {[%clk 0:02:58]} 9. Nbd2 {[%clk 0:02:58]}  Be6 {[%clk 0:02:58]} 10. Qe2 {[%clk 0:02:56]}  h6 {[%clk 0:02:57]} 11. a3 {[%clk 0:02:52]}  Qd7 {[%clk 0:02:56]} 12. Rfd1 {[%clk 0:02:46]}  Bh3 {[%clk 0:02:54]} 13. Bxh3 {[%clk 0:02:34]}  Qxh3 {[%clk 0:02:55]} 14. Ne4 {[%clk 0:02:34]}  Ne8 {[%clk 0:02:52]} 15. Qf1 {[%clk 0:02:24]}  Qc8 {[%clk 0:02:43]} 16. Qg2 {[%clk 0:02:20]}  f5 {[%clk 0:02:40]} 17. Ned2 {[%clk 0:02:12]}  e4 {[%clk 0:02:39]} 18. dxe4 {[%clk 0:01:33]}  Bxb2 {[%clk 0:02:38]} 19. Rab1 {[%clk 0:01:31]}  Bg7 {[%clk 0:02:38]} 20. Nh4 {[%clk 0:01:26]}  Qe6 {[%clk 0:02:28]} 21. exf5 {[%clk 0:01:23]}  gxf5 {[%clk 0:02:29]} 22. Nc4 {[%clk 0:01:15]}  Rd8 {[%clk 0:02:23]} 23. Rd5 {[%clk 0:00:49]}  Ne7 {[%clk 0:02:07]} 24. Rd3 {[%clk 0:00:48]}  d5 {[%clk 0:02:07]} 25. Rbd1 {[%clk 0:00:49]}  Rc8 {[%clk 0:01:59]} 26. Nd2 {[%clk 0:00:49]}  c4 {[%clk 0:01:54]} 27. bxc4 {[%clk 0:00:46]}  dxc4 {[%clk 0:01:55]} 28. Rd4 {[%clk 0:00:24]}  Bxd4 {[%clk 0:01:54]} 29. exd4 {[%clk 0:00:24]}  Ng6 {[%clk 0:01:47]} 30. d5 {[%clk 0:00:16]}  Qf6 {[%clk 0:01:39]} 31. Nxg6 {[%clk 0:00:13]}  Qxg6 {[%clk 0:01:40]} 32. Nf3 {[%clk 0:00:13]}  Nd6 {[%clk 0:01:35]} 33. Nd4 {[%clk 0:00:12]}  Ne4 {[%clk 0:01:28]} 34. Ne6 {[%clk 0:00:08]}  Rfe8 {[%clk 0:01:24]} 35. f3 {[%clk 0:00:08]}  Nc3 {[%clk 0:01:24]} 36. Rd4 {[%clk 0:00:02]}  Nxd5 {[%clk 0:01:22]} 0-1


[Site "https://www.chess.com"]

[Event "Titled Tuesday Blitz April 11 Late 2023"]
[White "Jimenez Almeida, Luis David"]
[Black "Mammadov, Zaur"]
[WhiteFideId "22242244"]
[BlackFideId "13401033"]
[WhiteElo "2245"]
[BlackElo "2441"]
[Result "0-1"]
[Round "04"]
[TimeControl "180+2"]
[Date "2023.04.11"]
[WhiteClock "0:00:13"]
[BlackClock "0:00:53"]

1. e4 {[%clk 0:03:00]}  e6 {[%clk 0:02:59]} 2. d4 {[%clk 0:02:59]}  d5 {[%clk 0:02:59]} 3. e5 {[%clk 0:02:59]}  c5 {[%clk 0:02:59]} 4. c3 {[%clk 0:03:00]}  Nc6 {[%clk 0:03:00]} 5. Nf3 {[%clk 0:03:00]}  Qb6 {[%clk 0:03:00]} 6. a3 {[%clk 0:03:01]}  Bd7 {[%clk 0:03:00]} 7. b4 {[%clk 0:03:00]}  cxd4 {[%clk 0:03:01]} 8. cxd4 {[%clk 0:03:01]}  Rc8 {[%clk 0:03:01]} 9. Be2 {[%clk 0:02:58]}  a5 {[%clk 0:02:59]} 10. b5 {[%clk 0:02:56]}  Nxd4 {[%clk 0:02:59]} 11. Nxd4 {[%clk 0:02:50]}  Rxc1 {[%clk 0:02:59]} 12. Qxc1 {[%clk 0:02:47]}  Qxd4 {[%clk 0:03:00]} 13. Qc3 {[%clk 0:02:45]}  Bc5 {[%clk 0:03:00]} 14. O-O {[%clk 0:02:39]}  Ne7 {[%clk 0:03:01]} 15. Ra2 {[%clk 0:02:28]}  b6 {[%clk 0:02:59]} 16. a4 {[%clk 0:02:21]}  Ng6 {[%clk 0:02:58]} 17. Qxd4 {[%clk 0:01:58]}  Bxd4 {[%clk 0:02:58]} 18. Nd2 {[%clk 0:01:59]}  Bxe5 {[%clk 0:02:55]} 19. Rc1 {[%clk 0:01:55]}  Bd6 {[%clk 0:02:55]} 20. g3 {[%clk 0:01:54]}  Ke7 {[%clk 0:02:55]} 21. Rac2 {[%clk 0:01:54]}  e5 {[%clk 0:02:53]} 22. Nb3 {[%clk 0:01:49]}  h5 {[%clk 0:02:49]} 23. h4 {[%clk 0:01:47]}  f5 {[%clk 0:02:48]} 24. Rd1 {[%clk 0:01:45]}  d4 {[%clk 0:02:46]} 25. Bf3 {[%clk 0:01:27]}  Nf8 {[%clk 0:02:45]} 26. Bc6 {[%clk 0:01:22]}  Ne6 {[%clk 0:02:45]} 27. Bxd7 {[%clk 0:01:21]}  Kxd7 {[%clk 0:02:46]} 28. Rc6 {[%clk 0:01:19]}  Bc7 {[%clk 0:02:38]} 29. f4 {[%clk 0:01:15]}  Nd8 {[%clk 0:02:01]} 30. Rg6 {[%clk 0:01:05]}  Ne6 {[%clk 0:01:59]} 31. fxe5 {[%clk 0:01:03]}  Bxe5 {[%clk 0:01:52]} 32. Re1 {[%clk 0:00:51]}  Bf6 {[%clk 0:01:48]} 33. Kg2 {[%clk 0:00:37]}  Rc8 {[%clk 0:01:34]} 34. Rf1 {[%clk 0:00:37]}  Rc2+ {[%clk 0:01:29]} 35. Kh3 {[%clk 0:00:37]}  Rc3 {[%clk 0:01:23]} 36. Nd2 {[%clk 0:00:34]}  Rc2 {[%clk 0:01:14]} 37. Nb3 {[%clk 0:00:35]}  Ke7 {[%clk 0:01:07]} 38. Rxf5 {[%clk 0:00:31]}  d3 {[%clk 0:01:06]} 39. Rd5 {[%clk 0:00:28]}  Kf7 {[%clk 0:00:53]} 40. Rxf6+ {[%clk 0:00:19]}  Kxf6 {[%clk 0:00:53]} 41. Rxd3 {[%clk 0:00:19]}  g5 {[%clk 0:00:54]} 42. g4 {[%clk 0:00:13]}  Nf4+ {[%clk 0:00:53]} 0-1


[Site "https://www.chess.com"]

[Event "Titled Tuesday Blitz April 11 Late 2023"]
[White "Richter, Paul"]
[Black "Klukin, Kirill"]
[WhiteFideId "2046350"]
[BlackFideId "24199273"]
[WhiteElo "2171"]
[BlackElo "2344"]
[Result "1/2-1/2"]
[Round "04"]
[TimeControl "180+2"]
[Date "2023.04.11"]
[WhiteClock "0:00:08"]
[BlackClock "0:00:14"]

1. e4 {[%clk 0:03:00]}  d6 {[%clk 0:02:58]} 2. d4 {[%clk 0:03:00]}  f5 {[%clk 0:02:59]} 3. Nc3 {[%clk 0:02:52]}  Nf6 {[%clk 0:02:59]} 4. exf5 {[%clk 0:02:51]}  Bxf5 {[%clk 0:02:59]} 5. Bd3 {[%clk 0:02:52]}  Qd7 {[%clk 0:02:59]} 6. Nf3 {[%clk 0:02:51]}  g6 {[%clk 0:02:57]} 7. h3 {[%clk 0:02:51]}  Bg7 {[%clk 0:02:57]} 8. Bg5 {[%clk 0:02:51]}  O-O {[%clk 0:02:56]} 9. Qe2 {[%clk 0:02:51]}  Nc6 {[%clk 0:02:56]} 10. O-O-O {[%clk 0:02:47]}  Rae8 {[%clk 0:02:55]} 11. Bc4+ {[%clk 0:02:29]}  d5 {[%clk 0:01:49]} 12. Bb3 {[%clk 0:02:18]}  Na5 {[%clk 0:01:44]} 13. g4 {[%clk 0:01:38]}  Nxb3+ {[%clk 0:01:43]} 14. axb3 {[%clk 0:01:38]}  Be4 {[%clk 0:01:38]} 15. Ne5 {[%clk 0:01:36]}  Qe6 {[%clk 0:01:25]} 16. f3 {[%clk 0:01:32]}  c5 {[%clk 0:01:04]} 17. fxe4 {[%clk 0:01:13]}  cxd4 {[%clk 0:01:04]} 18. exd5 {[%clk 0:01:13]}  Nxd5 {[%clk 0:00:28]} 19. Nxd5 {[%clk 0:01:11]}  Qxd5 {[%clk 0:00:28]} 20. Qc4 {[%clk 0:01:10]}  Qxc4 {[%clk 0:00:28]} 21. Nxc4 {[%clk 0:01:11]}  b5 {[%clk 0:00:27]} 22. Na5 {[%clk 0:01:03]}  e5 {[%clk 0:00:27]} 23. Nc6 {[%clk 0:00:59]}  Re6 {[%clk 0:00:24]} 24. Nxa7 {[%clk 0:00:51]}  Rb8 {[%clk 0:00:22]} 25. Rhe1 {[%clk 0:00:38]}  Ra6 {[%clk 0:00:21]} 26. Nxb5 {[%clk 0:00:32]}  Rxb5 {[%clk 0:00:22]} 27. Re4 {[%clk 0:00:27]}  Rc5 {[%clk 0:00:20]} 28. Kd2 {[%clk 0:00:24]}  h6 {[%clk 0:00:17]} 29. Bh4 {[%clk 0:00:20]}  Rac6 {[%clk 0:00:17]} 30. Rc1 {[%clk 0:00:20]}  g5 {[%clk 0:00:18]} 31. Bg3 {[%clk 0:00:20]}  Rf6 {[%clk 0:00:18]} 32. Rxe5 {[%clk 0:00:15]}  Rc8 {[%clk 0:00:12]} 33. Re2 {[%clk 0:00:14]}  Rf3 {[%clk 0:00:12]} 34. Bf2 {[%clk 0:00:13]}  Rxh3 {[%clk 0:00:12]} 35. Rce1 {[%clk 0:00:12]}  Kh7 {[%clk 0:00:11]} 36. Re4 {[%clk 0:00:11]}  Rd8 {[%clk 0:00:10]} 37. R1e2 {[%clk 0:00:11]}  Rf3 {[%clk 0:00:10]} 38. Bg1 {[%clk 0:00:10]}  d3 {[%clk 0:00:10]} 39. cxd3 {[%clk 0:00:09]}  Rdxd3+ {[%clk 0:00:11]} 40. Kc2 {[%clk 0:00:08]}  Rxb3 {[%clk 0:00:12]} 41. Bd4 {[%clk 0:00:07]}  Rb7 {[%clk 0:00:11]} 42. Bxg7 {[%clk 0:00:07]}  Rxg7 {[%clk 0:00:12]} 43. Re7 {[%clk 0:00:06]}  Rf4 {[%clk 0:00:12]} 44. R7e4 {[%clk 0:00:07]}  Rgf7 {[%clk 0:00:10]} 45. b4 {[%clk 0:00:06]}  R4f6 {[%clk 0:00:10]} 46. Kb3 {[%clk 0:00:06]}  Kg6 {[%clk 0:00:10]} 47. b5 {[%clk 0:00:06]}  h5 {[%clk 0:00:11]} 48. gxh5+ {[%clk 0:00:06]}  Kxh5 {[%clk 0:00:12]} 49. Kb4 {[%clk 0:00:06]}  g4 {[%clk 0:00:10]} 50. Rh2+ {[%clk 0:00:06]}  Kg5 {[%clk 0:00:11]} 51. Rg2 {[%clk 0:00:07]}  Rf4 {[%clk 0:00:11]} 52. Rxf4 {[%clk 0:00:07]}  Rxf4+ {[%clk 0:00:12]} 53. Ka5 {[%clk 0:00:08]}  Rf5 {[%clk 0:00:11]} 54. Ka6 {[%clk 0:00:08]}  Kh4 {[%clk 0:00:11]} 55. b6 {[%clk 0:00:08]}  Rf6 {[%clk 0:00:12]} 56. Ka7 {[%clk 0:00:08]}  Kh3 {[%clk 0:00:12]} 57. Rxg4 {[%clk 0:00:07]}  Kxg4 {[%clk 0:00:12]} 58. b7 {[%clk 0:00:08]}  Rf7 {[%clk 0:00:13]} 59. Ka8 {[%clk 0:00:08]}  Rxb7 {[%clk 0:00:14]} 60. Kxb7 {[%clk 0:00:08]} 1/2-1/2


[Site "https://www.chess.com"]